bitfinex-derivatives/quotes_SOLF0:USTF0_20250109
["timestamp","ask_amount","ask_price","bid_price","bid_amount"]
[1736435808824,1.6002,189.41,189.29,2.6428]
[1736435809128,1.6002,189.41,189.28,19.32403562]
[1736435809332,5.36,189.42,189.32,2.6424]
[1736435809528,5.36,189.42,189.31,19.32403562]
[1736435809732,2.6413,189.4,189.32,1.4782]
[1736435810031,3.1369,189.46,189.32,1.4782]
[1736435810330,101.68403562,189.54,189.37,19.32403562]
[1736435810525,6.8743,189.52,189.37,19.32403562]
[1736435810728,2.6409,189.44,189.37,19.32403562]
[1736435811035,6.8743,189.52,189.34,19.32403562]
[1736435811236,6.8743,189.52,189.33,3.1979]
[1736435811425,19.32403562,189.47,189.35,2.642]
[1736435811724,19.32403562,189.47,189.33,3.1979]
[1736435811928,19.32403562,189.47,189.33,5.8402]
[1736435812233,19.32403562,189.47,189.33,3.1979]
[1736435812827,1.4972,189.46,189.34,2.642]
[1736435813028,1.4972,189.46,189.33,3.1979]
[1736435814231,2.6413,189.41,189.36,2.6418]
[1736435814630,1.4972,189.46,189.36,2.6418]
[1736435815227,19.32403562,189.5,189.39,2.6414]
[1736435815534,24.68403562,189.5,189.34,19.32403562]
[1736435815933,2.6407,189.45,189.34,19.32403562]
[1736435816437,2.6403,189.47,189.34,19.32403562]
[1736435816739,5.36,189.5,189.37,19.32403562]
[1736435817238,2.6407,189.45,189.4,2.6413]
[1736435817427,2.6407,189.45,189.37,19.32403562]
[1736435818032,2.6407,189.45,189.4,2.6412]
[1736435818234,2.6406,189.46,189.4,2.6412]
[1736435818832,5.54739,189.51,189.37,19.32403562]
[1736435819036,19.32403562,189.5,189.34,19.32403562]
[1736435819338,2.6406,189.46,189.38,2.6415]
[1736435819533,5.54739,189.51,189.38,2.6415]
[1736435820031,2.6409,189.44,189.39,2.6414]
[1736435821141,5.54739,189.51,189.34,19.32403562]
[1736435821334,1.5654,189.5,189.34,19.32403562]
[1736435822441,1.5654,189.5,189.37,19.32403562]
[1736435822640,0.18739,189.51,189.4,19.32403562]
[1736435822837,0.18739,189.51,189.43,19.32403562]
[1736435823238,0.18739,189.51,189.46,19.32403562]
[1736435823436,0.18739,189.51,189.48,2.6401]
[1736435824142,1.5059,189.61,189.46,19.32403562]
[1736435824338,1.5059,189.61,189.49,19.32403562]
[1736435824836,2.6391,189.57,189.51,2.6397]
[1736435825035,1.5059,189.61,189.49,19.32403562]
[1736435825341,1.5059,189.61,189.46,19.32403562]
[1736435826140,1.5059,189.61,189.52,2.6396]
[1736435826340,1.5059,189.61,189.46,19.32403562]
[1736435826540,2.6392,189.55,189.5,2.6399]
[1736435826841,2.6392,189.55,189.46,19.32403562]
[1736435827031,6.8459,189.61,189.46,19.32403562]
[1736435827234,2.6391,189.56,189.49,19.32403562]
[1736435827431,1.5133,189.67,189.53,19.32403562]
[1736435827638,2.6384,189.61,189.55,2.6392]
[1736435827837,2.6384,189.61,189.54,1.5974]
[1736435828039,82.4,189.68,189.54,1.5974]
[1736435828239,5.34,189.68,189.58,2.6387]
[1736435828744,2.6381,189.64,189.58,2.6387]
[1736435828940,2.6381,189.64,189.59,2.6386]
[1736435829444,5.34,189.69,189.57,1.5429]
[1736435829845,2.638,189.64,189.57,1.5429]
[1736435830044,5.34,189.69,189.61,2.6383]
[1736435830234,5.34,189.69,189.59,19.32403562]
[1736435830437,2.6376,189.67,189.59,19.32403562]
[1736435831242,2.6374,189.68,189.62,2.6383]
[1736435831743,2.6376,189.67,189.62,2.6383]
[1736435831935,2.6376,189.67,189.61,2.6384]
[1736435832142,1.4845,189.74,189.59,19.32403562]
[1736435832441,19.32403562,189.72,189.58,4.2342]
[1736435832648,1.4845,189.74,189.57,1.5429]
[1736435832649,19.32403562,189.69,189.57,1.5429]
[1736435832948,19.32403562,189.69,189.57,2.6389]
[1736435833149,19.32403562,189.69,189.55,1.6296]
[1736435833344,19.32403562,189.72,189.56,19.32403562]
[1736435833848,2.6379,189.65,189.56,19.32403562]
[1736435834047,19.32403562,189.72,189.56,19.32403562]
[1736435834641,0.80928023,189.71,189.55,1.6296]
[1736435835050,2.638,189.64,189.55,1.6296]
[1736435835644,2.638,189.64,189.56,19.32403562]
[1736435836149,2.638,189.64,189.59,2.6386]
[1736435837154,2.6378,189.66,189.6,2.6384]
[1736435837352,2.6378,189.66,189.56,19.32403562]
[1736435837650,2.6374,189.68,189.63,2.6381]
[1736435837849,1.4845,189.74,189.62,19.32403562]
[1736435838154,1.4845,189.74,189.66,2.6377]
[1736435838155,2.637,189.71,189.66,2.6377]
[1736435838750,15.9,189.91,189.63,1.5073]
[1736435838956,0.80886707,189.84,189.71,19.32403562]
[1736435839154,151.41851934,189.92,189.72,1.4841]
[1736435839155,3.1539,189.9,189.72,1.4841]
[1736435839452,19.32403562,189.88,189.72,1.4841]
[1736435839652,19.32403562,189.85,189.72,1.4841]
[1736435840256,27.87793562,189.9,189.72,1.4841]
[1736435840257,1.6135,189.9,189.74,19.32403562]
[1736435840453,2.635,189.86,189.74,19.32403562]
[1736435840658,3.1539,189.9,189.77,2.6361]
[1736435841048,3.1539,189.9,189.74,19.32403562]
[1736435841252,2.6354,189.83,189.74,19.32403562]
[1736435842149,2.6354,189.83,189.77,2.6361]
[1736435842553,2.6349,189.86,189.77,19.32403562]
[1736435842753,3.1539,189.9,189.81,2.6355]
[1736435843253,19.32403562,189.94,189.8,19.32403562]
[1736435843556,1.4903,189.94,189.8,19.32403562]
[1736435843752,2.6344,189.9,189.8,21.95963562]
[1736435843959,20.81433562,189.94,189.8,21.95963562]
[1736435843960,20.81433562,189.94,189.8,19.32403562]
[1736435844259,2.6351,189.85,189.81,2.6356]
[1736435844460,20.81433562,189.94,189.81,2.6356]
[1736435844757,20.81433562,189.94,189.8,19.32403562]
[1736435844758,2.6347,189.88,189.83,2.6353]
[1736435846663,2.6348,189.87,189.82,2.6355]
[1736435847756,5.36,189.92,189.77,19.32403562]
[1736435848458,5.36,189.92,189.81,2.6356]
[1736435848658,5.36,189.92,189.8,19.32403562]
[1736435848857,5.36,189.92,189.81,1.4765]
[1736435849362,5.36,189.92,189.82,1.5003]
[1736435849559,1.5169,189.97,189.82,1.5003]
[1736435849759,19.32403562,189.95,189.82,1.5003]
[1736435849960,2.6348,189.87,189.82,4.1358]
[1736435850161,5.34,189.96,189.81,1.4765]
[1736435850162,19.32403562,189.92,189.81,1.4765]
[1736435850367,19.32403562,189.92,189.73,6.8483]
[1736435850368,19.32403562,189.89,189.74,1.5003]
[1736435850557,19.32403562,189.86,189.73,1.4883]
[1736435851062,2.6362,189.78,189.73,1.4883]
[1736435851255,19.32403562,189.86,189.73,1.4883]
[1736435851456,2.6357,189.81,189.76,2.6362]
[1736435851763,9.9128,189.88,189.75,19.32403562]
[1736435851965,9.9128,189.88,189.76,3.0648]
[1736435852662,2.636,189.79,189.76,1.5642]
[1736435852864,9.9128,189.88,189.76,1.5642]
[1736435853258,2.636,189.78,189.76,1.5642]
[1736435853467,9.9128,189.88,189.76,1.5642]
[1736435854269,19.32403562,189.86,189.69,20.82463562]
[1736435854467,19.32403562,189.83,189.69,22.35433562]
[1736435854864,2.6362,189.78,189.73,2.6366]
[1736435855062,19.32403562,189.83,189.69,22.35433562]
[1736435855358,2.6369,189.72,189.68,2.6374]
[1736435855563,19.32403562,189.77,189.62,19.32403562]
[1736435855763,3.1575,189.76,189.62,19.32403562]
[1736435855965,2.6376,189.67,189.59,19.32403562]
[1736435856165,3.1575,189.76,189.62,19.32403562]
[1736435856365,3.1575,189.76,189.65,19.32403562]
[1736435856366,1.5967,189.76,189.65,19.32403562]
[1736435856566,1.5967,189.76,189.62,19.32403562]
[1736435856762,1.5967,189.76,189.59,19.32403562]
[1736435856763,19.32403562,189.75,189.59,19.32403562]
[1736435856959,2.6377,189.66,189.62,2.6382]
[1736435857161,19.32403562,189.75,189.59,19.32403562]
[1736435858063,2.6376,189.67,189.62,2.6382]
[1736435858565,2.637,189.72,189.62,2.6382]
[1736435858860,19.32403562,189.75,189.59,19.32403562]
[1736435859062,1.5967,189.76,189.65,19.32403562]
[1736435859465,1.5967,189.76,189.69,2.6372]
[1736435859661,5.36,189.79,189.66,1.5955]
[1736435859868,5.36,189.79,189.68,19.32403562]
[1736435860068,5.36,189.79,189.67,1.5882]
[1736435860972,2.6377,189.66,189.59,19.32403562]
[1736435861163,19.32403562,189.75,189.59,19.32403562]
[1736435862064,2.6375,189.68,189.62,19.32403562]
[1736435862366,19.32403562,189.78,189.62,21.96213562]
[1736435862671,19.32403562,189.75,189.59,19.32403562]
[1736435862875,19.32403562,189.75,189.59,21.96263562]
[1736435863168,2.6381,189.64,189.59,19.32403562]
[1736435863467,19.32403562,189.75,189.59,19.32403562]
[1736435863668,2.6371,189.71,189.59,19.32403562]
[1736435863863,5.38,189.71,189.59,19.32403562]
[1736435864364,5.38,189.71,189.61,2.6383]
[1736435864670,5.38,189.71,189.59,19.32403562]
[1736435865365,2.6377,189.67,189.59,19.32403562]
[1736435865570,5.38,189.71,189.62,2.6382]
[1736435866666,2.6377,189.67,189.62,2.6382]
[1736435866870,5.38,189.71,189.62,2.6382]
[1736435867369,5.38,189.71,189.63,2.6381]
[1736435867567,3.1805,189.8,189.65,19.32403562]
[1736435867568,8.5405,189.8,189.65,19.32403562]
[1736435867770,8.5405,189.8,189.66,3.1361]
[1736435867771,3.1805,189.8,189.66,3.1361]
[1736435868073,1.5608,189.8,189.7,2.637]
[1736435868474,2.6365,189.75,189.68,19.32403562]
[1736435868668,2.6365,189.75,189.71,2.637]
[1736435869569,19.32403562,189.87,189.74,2.6366]
[1736435869774,1.5353,189.89,189.75,1.6152]
[1736435870171,6.8953,189.89,189.77,2.6362]
[1736435870375,6.8953,189.89,189.75,3.2279]
[1736435870576,2.6357,189.81,189.76,2.6363]
[1736435870774,6.8953,189.89,189.75,3.2279]
[1736435870979,19.32403562,189.84,189.68,19.32403562]
[1736435871677,19.32403562,189.81,189.67,3.244]
[1736435871877,6.9879,189.8,189.67,3.244]
[1736435872573,2.6365,189.75,189.67,3.244]
[1736435872773,6.9879,189.8,189.67,3.244]
[1736435872978,2.6366,189.74,189.67,3.244]
[1736435873289,6.9879,189.8,189.67,3.244]
[1736435873482,2.6373,189.7,189.67,3.244]
[1736435873675,1.6279,189.8,189.67,3.244]
[1736435874484,2.6366,189.75,189.7,2.6371]
[1736435874683,1.6279,189.8,189.67,3.244]
[1736435874985,2.6363,189.77,189.7,2.637]
[1736435875186,1.6279,189.8,189.67,3.244]
[1736435876788,2.6364,189.76,189.7,2.637]
[1736435876986,2.6364,189.76,189.67,3.244]
[1736435877383,1.6145,189.83,189.7,19.32403562]
[1736435877980,19.32403562,189.87,189.74,2.6366]
[1736435877981,2.636,189.79,189.74,2.6366]
[1736435878181,3.0641,189.89,189.67,3.244]
[1736435878182,1.4909,189.88,189.73,19.32403562]
[1736435878683,19.32403562,189.9,189.76,19.32403562]
[1736435878884,10.0176,189.91,189.76,19.32403562]
[1736435879087,10.0176,189.91,189.77,1.5748]
[1736435879384,2.6351,189.85,189.81,2.6356]
[1736435879586,4.6576,189.91,189.79,19.32403562]
[1736435879786,19.32403562,189.93,189.79,19.32403562]
[1736435880388,2.6348,189.88,189.83,2.6353]
[1736435880990,5.34,189.95,189.82,2.6355]
[1736435881585,2.6349,189.87,189.82,2.6355]
[1736435882291,2.6347,189.88,189.83,2.6352]
[1736435882586,19.32403562,189.96,189.82,19.32403562]
[1736435882989,19.32403562,189.96,189.85,2.635]
[1736435883180,19.32403562,189.96,189.82,19.32403562]
[1736435883386,2.6347,189.88,189.83,2.6352]
[1736435883587,2.6347,189.88,189.82,19.32403562]
[1736435884189,19.32403562,189.96,189.82,19.32403562]
[1736435885290,2.6351,189.85,189.81,2.6356]
[1736435885495,19.32403562,189.87,189.77,1.5748]
[1736435885689,5.32,189.89,189.77,20.89883562]
[1736435886287,1.4868,189.95,189.8,19.32403562]
[1736435886497,2.6342,189.92,189.86,2.6349]
[1736435886790,24.64403562,189.96,189.81,3.162]
[1736435887185,2.6346,189.89,189.84,2.6352]
[1736435887689,24.64403562,189.96,189.81,3.162]
[1736435887993,19.32403562,189.93,189.81,3.162]
[1736435888185,2.6357,189.81,189.77,1.5748]
[1736435888382,19.32403562,189.9,189.77,1.5748]
[1736435888592,1.5192,189.89,189.77,1.5748]
[1736435888793,3.0633,189.89,189.78,2.636]
[1736435889195,5.32,189.88,189.75,2.6363]
[1736435889395,12.00391578,189.86,189.75,2.6363]
[1736435890095,12.00391578,189.86,189.76,2.6363]
[1736435890397,5.32,189.88,189.77,12.00391578]
[1736435890799,12.00391578,189.87,189.74,12.00391578]
[1736435891100,12.00391578,189.84,189.71,12.00391578]
[1736435891292,1.507,189.86,189.71,19.20869665]
[1736435891596,1.507,189.86,189.74,2.6365]
[1736435891797,1.507,189.86,189.71,19.20869665]
[1736435891994,2.6361,189.78,189.71,19.20869665]
[1736435892187,1.507,189.86,189.75,2.6364]
[1736435892389,1.507,189.86,189.71,19.20869665]
[1736435892789,19.20869665,189.84,189.71,2.637]
[1736435892993,19.20869665,189.84,189.68,20.77739665]
[1736435893198,2.6362,189.77,189.72,2.6368]
[1736435893401,2.6362,189.77,189.68,20.77739665]
[1736435893603,19.20869665,189.84,189.68,20.77739665]
[1736435894307,19.20869665,189.84,189.67,3.1045]
[1736435894992,2.6359,189.79,189.72,2.6368]
[1736435895197,19.20869665,189.84,189.67,3.1045]
[1736435895595,2.637,189.72,189.67,3.1045]
[1736435895800,5.34,189.8,189.67,3.1045]
[1736435896105,5.34,189.8,189.69,2.6373]
[1736435896304,5.34,189.8,189.67,3.1045]
[1736435896701,5.34,189.8,189.66,19.20869665]
[1736435896900,19.20869665,189.78,189.65,1.4921]
[1736435897204,2.6375,189.68,189.63,2.638]
[1736435897601,1.5777,189.77,189.63,19.20869665]
[1736435898503,1.5777,189.77,189.64,2.6379]
[1736435898700,19.20869665,189.76,189.62,6.924449]
[1736435898901,2.6374,189.69,189.64,2.6379]
[1736435899101,19.20869665,189.76,189.64,2.6379]
[1736435899303,19.20869665,189.76,189.62,6.924449]
[1736435900097,2.6379,189.65,189.62,6.924449]
[1736435900304,5.34,189.72,189.62,5.305349]
[1736435900503,1.6134,189.71,189.54,19.20869665]
[1736435900705,2.6384,189.62,189.57,2.6388]
[1736435900901,2.6384,189.62,189.54,19.20869665]
[1736435901407,2.6384,189.62,189.58,2.6387]
[1736435901609,2.6381,189.63,189.58,2.6387]
[1736435901901,1.6116,189.7,189.58,2.6387]
[1736435902102,1.6116,189.7,189.57,19.20869665]
[1736435902501,1.6116,189.7,189.6,2.6384]
[1736435902808,1.6116,189.7,189.57,19.20869665]
[1736435903409,5.34,189.72,189.6,19.20869665]
[1736435903707,5.34,189.72,189.61,3.1752]
[1736435904104,5.34,189.72,189.57,19.20869665]
[1736435905010,2.6375,189.68,189.64,2.638]
[1736435905609,2.637,189.72,189.68,2.6373]
[1736435905811,3.0813,189.76,189.62,19.20869665]
[1736435906012,3.0813,189.76,189.63,1.5267]
[1736435906712,3.0813,189.76,189.65,19.20869665]
[1736435907009,3.0813,189.76,189.64,3.1295]
[1736435907605,2.6369,189.72,189.67,2.6375]
[1736435908010,1.5937,189.76,189.65,19.20869665]
[1736435908213,106.78869665,189.81,189.65,19.20869665]
[1736435908715,5.32,189.81,189.68,19.20869665]
[1736435909613,2.6364,189.76,189.68,19.20869665]
[1736435910015,4.6379,189.85,189.68,19.20869665]
[1736435910016,4.6379,189.85,189.72,2.6368]
[1736435910211,2.6362,189.77,189.72,2.6368]
[1736435910510,5.32,189.84,189.72,2.6368]
[1736435910817,5.32,189.84,189.71,2.637]
[1736435910818,19.20869665,189.82,189.71,2.637]
[1736435911306,23.84659665,189.85,189.65,19.20869665]
[1736435911517,2.6358,189.8,189.7,19.20869665]
[1736435911813,3.0766,189.85,189.73,19.20869665]
[1736435912018,2.6352,189.84,189.8,2.6357]
[1736435912313,106.78869665,189.9,189.8,2.6357]
[1736435912713,2.6352,189.85,189.81,2.6356]
[1736435913014,82.28,189.9,189.76,19.20869665]
[1736435913316,82.28,189.9,189.84,2.6352]
[1736435913613,8.4514,189.92,189.79,19.20869665]
[1736435914407,2.6347,189.88,189.82,2.6354]
[1736435915515,3.1514,189.92,189.79,19.20869665]
[1736435915716,3.1514,189.92,189.76,19.20869665]
[1736435916016,3.1514,189.92,189.79,19.20869665]
[1736435916209,2.6346,189.89,189.79,19.20869665]
[1736435916615,1.6167,189.92,189.79,19.20869665]
[1736435917416,2.6348,189.87,189.79,19.20869665]
[1736435917615,1.6167,189.92,189.79,19.20869665]
[1736435918017,1.6167,189.92,189.81,2.6356]
[1736435918514,20.82539665,189.92,189.76,19.20869665]
[1736435918715,20.82539665,189.92,189.74,4.6003]
[1736435918716,19.20869665,189.89,189.74,4.6003]
[1736435918921,2.6359,189.79,189.74,4.6003]
[1736435919113,20.72819665,189.88,189.74,4.6003]
[1736435919515,20.72819665,189.88,189.75,2.6364]
[1736435919919,1.5116,189.87,189.75,2.6364]
[1736435920616,1.5116,189.87,189.74,7.2369]
[1736435920815,5.28,189.86,189.74,7.2369]
[1736435921111,2.636,189.79,189.74,7.2369]
[1736435921321,1.6167,189.92,189.78,19.20869665]
[1736435921510,5.28,189.93,189.81,19.20869665]
[1736435921715,2.6346,189.89,189.85,2.635]
[1736435921920,5.28,189.93,189.85,2.635]
[1736435922217,6.8292,189.96,189.83,1.5338]
[1736435922420,2.6344,189.9,189.83,3.1018]
[1736435923020,1.5116,189.98,189.88,2.6346]
[1736435923021,2.6341,189.92,189.88,2.6346]
[1736435923316,1.4722,189.99,189.87,19.20869665]
[1736435923709,2.6336,189.96,189.91,2.6341]
[1736435924120,7.03958,190.02,189.9,19.20869665]
[1736435924521,7.03958,190.02,189.87,19.20869665]
[1736435925322,7.03958,190.02,189.91,2.6342]
[1736435926229,0.21038,190.02,189.9,19.20869665]
[1736435926416,0.21038,190.02,189.95,2.6337]
[1736435926616,0.21038,190.02,189.91,1.5631]
[1736435926916,2.6334,189.97,189.92,4.2482]
[1736435927219,19.41907665,190.02,189.92,1.6142]
[1736435927820,2.6336,189.96,189.92,1.6142]
[1736435928223,19.41907665,190.02,189.92,1.6142]
[1736435928621,0.21038,190.02,189.92,1.6142]
[1736435928819,2.6334,189.98,189.94,2.6338]
[1736435929021,2.6334,189.98,189.92,1.6142]
[1736435929821,2.6331,189.99,189.92,1.6142]
[1736435930520,2.6331,189.99,189.94,2.6338]
[1736435930822,0.21038,190.02,189.93,19.20869665]
[1736435931024,0.21038,190.02,189.96,19.20869665]
[1736435931320,2.6323,190.05,189.96,19.20869665]
[1736435931521,19.20869665,190.11,189.99,2.6331]
[1736435931723,24.48869665,190.11,189.99,2.6331]
[1736435932017,24.48869665,190.11,190.0,2.6329]
[1736435932224,24.48869665,190.11,189.96,19.20869665]
[1736435932621,24.48869665,190.11,189.99,2.6331]
[1736435932820,24.48869665,190.11,189.96,19.20869665]
[1736435933020,2.6327,190.02,189.96,19.20869665]
[1736435933221,19.20869665,190.08,189.93,1.5407]
[1736435933422,19.20869665,190.05,189.93,1.5407]
[1736435933626,2.6336,189.96,189.92,1.6142]
[1736435933827,24.48869665,190.02,189.92,1.6142]
[1736435934826,24.48869665,190.02,189.87,20.74059665]
[1736435935221,2.6337,189.95,189.9,2.6344]
[1736435935425,24.48869665,190.02,189.87,20.74059665]
[1736435935926,24.48869665,190.02,189.87,1.5319]
[1736435936322,19.20869665,190.02,189.87,20.74059665]
[1736435936517,5.3,190.01,189.88,1.4852]
[1736435936820,2.6335,189.97,189.92,2.6341]
[1736435937013,5.3,190.01,189.88,1.4852]
[1736435939226,2.6341,189.93,189.88,4.1197]
[1736435939427,5.3,190.01,189.88,1.4852]
[1736435939829,2.6341,189.93,189.88,4.1198]
[1736435940332,19.20869665,189.99,189.84,19.20869665]
[1736435940520,19.20869665,189.99,189.85,1.4888]
[1736435940721,1.534,189.98,189.85,1.4888]
[1736435940928,2.6343,189.91,189.86,2.6349]
[1736435941531,2.6344,189.9,189.86,2.6349]
[1736435941726,3.1361,189.98,189.86,2.6349]
[1736435942231,19.20869665,189.96,189.82,1.5672]
[1736435942423,19.20869665,189.93,189.78,23.87239665]
[1736435942627,2.6352,189.85,189.8,2.6357]
[1736435942928,5.28,189.92,189.78,23.87239665]
[1736435943133,5.28,189.92,189.81,19.20869665]
[1736435943426,5.28,189.92,189.78,3.0318]
[1736435943829,19.20869665,189.9,189.78,1.5569]
[1736435944028,3.1485,189.89,189.78,1.5569]
[1736435944929,3.1485,189.89,189.73,3.1213]
[1736435945231,3.1485,189.89,189.73,4.6782]
[1736435946030,2.6356,189.82,189.73,4.6782]
[1736435946635,2.6356,189.82,189.77,2.6361]
[1736435947531,2.6356,189.81,189.77,2.6361]
[1736435947831,3.1485,189.89,189.74,19.20869665]
[1736435948028,3.1485,189.89,189.77,19.20869665]
[1736435948029,1.5278,189.89,189.77,19.20869665]
[1736435949129,5.28,189.89,189.77,19.20869665]
[1736435949326,2.9948,189.94,189.77,19.20869665]
[1736435949527,5.28,189.93,189.8,19.20869665]
[1736435949735,5.28,189.93,189.85,2.635]
[1736435950138,2.6343,189.91,189.86,2.6348]
[1736435950341,2.6343,189.91,189.83,19.20869665]
[1736435951239,2.6343,189.91,189.86,2.6348]
[1736435951440,2.6343,189.91,189.83,19.20869665]
[1736435951738,2.6343,189.91,189.86,2.6349]
[1736435952130,2.6344,189.9,189.86,2.6349]
[1736435952839,1.5469,189.95,189.82,3.0536]
[1736435953038,1.5469,189.95,189.8,19.20869665]
[1736435953940,2.6349,189.87,189.83,2.6352]
[1736435954437,2.6349,189.86,189.82,2.6354]
[1736435955542,1.5469,189.95,189.82,2.6354]
[1736435956041,2.6342,189.92,189.82,2.6354]
[1736435956338,1.6338,189.91,189.83,2.6352]
[1736435957137,2.6349,189.87,189.83,2.6352]
[1736435958036,2.6346,189.89,189.8,19.20869665]
[1736435958240,5.26,189.94,189.83,19.20869665]
[1736435958537,1.5469,189.95,189.83,19.20869665]
[1736435959239,2.6346,189.88,189.83,19.20869665]
[1736435959444,1.5469,189.95,189.83,19.20869665]
[1736435960140,1.5469,189.95,189.86,2.6349]
[1736435960636,2.6341,189.92,189.83,19.20869665]
[1736435960838,2.6341,189.92,189.84,1.6358]
[1736435961240,2.6341,189.92,189.88,2.6345]
[1736435961444,5.26,189.95,189.85,3.0962]
[1736435961648,2.634,189.93,189.89,2.6345]
[1736435962249,2.6342,189.92,189.89,2.6345]
[1736435964554,5.26,189.95,189.85,3.0962]
[1736435964753,5.26,189.95,189.85,1.6131]
[1736435965758,5.26,189.95,189.85,4.2481]
[1736435966755,2.6346,189.89,189.86,2.6349]
[1736435968159,5.26,189.95,189.89,2.6345]
[1736435968359,5.26,189.95,189.86,20.81559665]
[1736435968657,2.6342,189.92,189.88,2.6345]
[1736435969358,2.6343,189.91,189.88,2.6345]
[1736435969560,5.26,189.95,189.86,1.6069]
[1736435969757,5.26,189.95,189.85,1.6131]
[1736435969957,2.6345,189.89,189.85,1.6131]
[1736435970260,2.6345,189.89,189.86,2.6349]
[1736435970450,5.26,189.95,189.85,1.6131]
[1736435971054,2.6349,189.86,189.85,1.6131]
[1736435971258,5.26,189.95,189.8,19.20869665]
[1736435971459,5.26,189.95,189.82,2.6354]
[1736435971656,19.20869665,189.93,189.79,1.5829]
[1736435971957,19.20869665,189.9,189.79,4.2188]
[1736435972158,2.963,189.92,189.74,64.62865796]
[1736435972159,2.6359,189.79,189.74,64.62865796]
[1736435972352,5.22,189.85,189.74,64.62865796]
[1736435972858,2.6359,189.8,189.74,64.62865796]
[1736435973063,2.6359,189.8,189.76,2.6362]
[1736435973257,5.22,189.85,189.74,64.62865796]
[1736435973962,2.636,189.79,189.75,2.6364]
[1736435974464,2.6364,189.75,189.74,64.62865796]
[1736435974860,20.69509665,189.84,189.74,64.62865796]
[1736435974861,1.6001,189.83,189.74,64.62865796]
[1736435975267,2.6361,189.78,189.74,64.62865796]
[1736435976361,1.6001,189.83,189.74,64.62865796]
[1736435976560,1.6001,189.83,189.72,1.5829]
[1736435977267,19.20869665,189.81,189.63,19.20869665]
[1736435977463,19.20869665,189.78,189.64,4.5743]
[1736435977664,5.22,189.77,189.64,4.5743]
[1736435977864,2.6371,189.71,189.64,4.5743]
[1736435978066,5.22,189.77,189.64,4.5743]
[1736435978067,5.22,189.77,189.66,19.20869665]
[1736435978962,5.22,189.78,189.66,19.20869665]
[1736435979166,5.22,189.78,189.68,2.6373]
[1736435979568,2.6369,189.73,189.68,2.6373]
[1736435979769,5.22,189.78,189.68,2.6373]
[1736435980064,5.22,189.78,189.66,19.20869665]
[1736435980462,5.22,189.82,189.69,19.20869665]
[1736435981566,5.22,189.82,189.66,19.20869665]
[1736435981763,2.6366,189.74,189.7,2.6371]
[1736435982070,5.22,189.82,189.66,19.20869665]
[1736435982273,2.6367,189.74,189.69,2.6373]
[1736435983171,2.6369,189.72,189.68,2.6374]
[1736435983367,5.2,189.79,189.66,19.20869665]
[1736435983563,5.2,189.79,189.64,4.5743]
[1736435983764,19.20869665,189.78,189.64,4.5743]
[1736435984182,19.20869665,189.75,189.62,5.30536101]
[1736435984471,2.6379,189.65,189.62,5.30536101]
[1736435985170,2.6381,189.63,189.62,5.30536101]
[1736435985477,5.2,189.71,189.58,4.577]
[1736435985664,2.6386,189.6,189.58,1.4958]
[1736435985869,19.20869665,189.69,189.58,1.4958]
[1736435986071,1.4756,189.68,189.53,2.6394]
[1736435986270,1.4756,189.68,189.51,19.20869665]
[1736435986972,2.6386,189.6,189.55,2.6391]
[1736435987174,1.4756,189.68,189.51,19.20869665]
[1736435987474,1.4756,189.68,189.59,2.6387]
[1736435987874,2.6381,189.64,189.59,2.6387]
[1736435988172,5.2,189.71,189.54,19.20869665]
[1736435988173,5.2,189.71,189.6,19.20869665]
[1736435988373,5.2,189.71,189.61,1.5393]
[1736435988576,5.2,189.71,189.62,2.6382]
[1736435989070,2.6378,189.65,189.61,1.5393]
[1736435989375,5.2,189.71,189.61,1.5393]
[1736435990077,2.638,189.64,189.6,2.6384]
[1736435990268,5.2,189.71,189.61,2.6384]